[Event "Titled Tuesday Blitz November 07 Early 2023"]
[White "Mejia, Cherry Ann"]
[Black "Harikrishnan.A.Ra"]
[WhiteFideId "5206880"]
[BlackFideId "5081483"]
[WhiteElo "2370"]
[BlackElo "2684"]
[Result "0-1"]
[Round "2"]
[TimeControl "180+1"]
[Date "2023.11.07"]
[WhiteClock "0:00:00"]
[BlackClock "0:00:27"]
[Board "154"]

1. e4 {[%clk 0:03:00]}  Nf6 {[%clk 0:02:49]} 2. e5 {[%clk 0:03:00]}  Ng8 {[%clk 0:02:49]} 3. d4 {[%clk 0:02:59]}  d6 {[%clk 0:02:50]} 4. exd6 {[%clk 0:02:57]}  cxd6 {[%clk 0:02:50]} 5. c4 {[%clk 0:02:58]}  Nf6 {[%clk 0:02:50]} 6. Nc3 {[%clk 0:02:58]}  g6 {[%clk 0:02:51]} 7. Nf3 {[%clk 0:02:58]}  Bg7 {[%clk 0:02:52]} 8. Be3 {[%clk 0:02:58]}  O-O {[%clk 0:02:53]} 9. Rc1 {[%clk 0:02:58]}  d5 {[%clk 0:02:54]} 10. h3 {[%clk 0:02:52]}  Nc6 {[%clk 0:02:54]} 11. Be2 {[%clk 0:02:49]}  dxc4 {[%clk 0:02:36]} 12. Bxc4 {[%clk 0:02:48]}  b6 {[%clk 0:02:36]} 13. O-O {[%clk 0:02:47]}  Bb7 {[%clk 0:02:34]} 14. Ne5 {[%clk 0:02:32]}  Rc8 {[%clk 0:02:26]} 15. Nxc6 {[%clk 0:02:25]}  Bxc6 {[%clk 0:02:21]} 16. Ba6 {[%clk 0:02:25]}  Ra8 {[%clk 0:02:03]} 17. Qb3 {[%clk 0:02:23]}  Qd7 {[%clk 0:01:54]} 18. Rfd1 {[%clk 0:02:19]}  Nd5 {[%clk 0:01:44]} 19. Nxd5 {[%clk 0:01:21]}  Bxd5 {[%clk 0:01:45]} 20. Bc4 {[%clk 0:01:10]}  Bb7 {[%clk 0:01:24]} 21. Bb5 {[%clk 0:01:06]}  Qd6 {[%clk 0:01:19]} 22. Qc2 {[%clk 0:00:22]}  Qd5 {[%clk 0:01:13]} 23. Bc6 {[%clk 0:00:22]}  Bxc6 {[%clk 0:01:12]} 24. Qxc6 {[%clk 0:00:23]}  Qxa2 {[%clk 0:01:13]} 25. Qd7 {[%clk 0:00:15]}  Qxb2 {[%clk 0:01:09]} 26. Qxe7 {[%clk 0:00:15]}  a5 {[%clk 0:01:04]} 27. Qb7 {[%clk 0:00:15]}  a4 {[%clk 0:01:04]} 28. Rb1 {[%clk 0:00:15]}  Qc2 {[%clk 0:01:04]} 29. Qxb6 {[%clk 0:00:15]}  a3 {[%clk 0:01:02]} 30. Rdc1 {[%clk 0:00:15]}  Qe4 {[%clk 0:01:00]} 31. Qb3 {[%clk 0:00:15]}  Bxd4 {[%clk 0:00:54]} 32. Qc4 {[%clk 0:00:11]}  Qxb1 {[%clk 0:00:37]} 33. Rxb1 {[%clk 0:00:11]}  a2 {[%clk 0:00:38]} 34. Rd1 {[%clk 0:00:09]}  Bxe3 {[%clk 0:00:35]} 35. fxe3 {[%clk 0:00:09]}  a1=Q {[%clk 0:00:34]} 36. Rxa1 {[%clk 0:00:09]}  Rxa1+ {[%clk 0:00:35]} 37. Kh2 {[%clk 0:00:09]}  Ra7 {[%clk 0:00:35]} 38. Qd4 {[%clk 0:00:09]}  Re7 {[%clk 0:00:35]} 39. Qf4 {[%clk 0:00:09]}  Rfe8 {[%clk 0:00:36]} 40. Qf2 {[%clk 0:00:07]}  Rxe3 {[%clk 0:00:36]} 41. Qf4 {[%clk 0:00:07]}  R3e4 {[%clk 0:00:36]} 42. Qf3 {[%clk 0:00:07]}  h5 {[%clk 0:00:37]} 43. Qd3 {[%clk 0:00:07]}  R4e5 {[%clk 0:00:34]} 44. Qf3 {[%clk 0:00:07]}  Rf5 {[%clk 0:00:34]} 45. Qd3 {[%clk 0:00:07]}  Re6 {[%clk 0:00:33]} 46. Qd8+ {[%clk 0:00:07]}  Kg7 {[%clk 0:00:33]} 47. Qd4+ {[%clk 0:00:07]}  Kh7 {[%clk 0:00:34]} 48. Qd3 {[%clk 0:00:07]}  Ref6 {[%clk 0:00:28]} 49. Qe4 {[%clk 0:00:07]}  Rf2 {[%clk 0:00:27]} 50. Qe3 {[%clk 0:00:07]}  R6f5 {[%clk 0:00:27]} 51. Qd4 {[%clk 0:00:05]}  Re2 {[%clk 0:00:27]} 52. Qd3 {[%clk 0:00:00]}  Rff2 {[%clk 0:00:27]} 0-1


[Site "https://www.chess.com"]

[Event "Titled Tuesday Blitz November 07 Early 2023"]
[White "Corredor Castellanos, Camilo"]
[Black "Koellner, Ruben Gideon"]
[WhiteFideId "4425871"]
[BlackFideId "12993093"]
[WhiteElo "2367"]
[BlackElo "2683"]
[Result "0-1"]
[Round "2"]
[TimeControl "180+1"]
[Date "2023.11.07"]
[WhiteClock "0:01:51"]
[BlackClock "0:02:43"]
[Board "155"]

1. e4 {[%clk 0:03:00]}  d6 {[%clk 0:03:00]} 2. d4 {[%clk 0:02:57]}  Nf6 {[%clk 0:03:01]} 3. Nc3 {[%clk 0:02:55]}  e5 {[%clk 0:03:02]} 4. Nf3 {[%clk 0:02:48]}  Nbd7 {[%clk 0:03:01]} 5. Be3 {[%clk 0:02:36]}  Be7 {[%clk 0:02:59]} 6. Qd2 {[%clk 0:02:36]}  c6 {[%clk 0:02:59]} 7. O-O-O {[%clk 0:02:35]}  b5 {[%clk 0:02:59]} 8. d5 {[%clk 0:02:28]}  b4 {[%clk 0:02:53]} 9. dxc6 {[%clk 0:02:28]}  bxc3 {[%clk 0:02:53]} 10. cxd7+ {[%clk 0:02:28]}  Bxd7 {[%clk 0:02:54]} 11. Qxc3 {[%clk 0:02:28]}  O-O {[%clk 0:02:54]} 12. Bd3 {[%clk 0:02:26]}  Rc8 {[%clk 0:02:51]} 13. Qd2 {[%clk 0:02:17]}  Qc7 {[%clk 0:02:49]} 14. Kb1 {[%clk 0:02:13]}  Rb8 {[%clk 0:02:48]} 15. Ka1 {[%clk 0:02:13]}  Qb7 {[%clk 0:02:48]} 16. c3 {[%clk 0:02:09]}  Nxe4 {[%clk 0:02:45]} 17. Qc2 {[%clk 0:02:09]}  Nf6 {[%clk 0:02:44]} 18. h4 {[%clk 0:01:51]}  e4 {[%clk 0:02:43]} 0-1


[Site "https://www.chess.com"]

[Event "Titled Tuesday Blitz November 07 Early 2023"]
[White "Can, Melih Kaan"]
[Black "Mendez Fortes, Eduardo Jesus"]
[WhiteFideId "6317383"]
[BlackFideId "3502376"]
[WhiteElo "2365"]
[BlackElo "2674"]
[Result "1-0"]
[Round "2"]
[TimeControl "180+1"]
[Date "2023.11.07"]
[WhiteClock "0:00:39"]
[BlackClock "0:00:16"]
[Board "156"]

1. e4 {[%clk 0:03:00]}  c5 {[%clk 0:02:59]} 2. Nf3 {[%clk 0:03:00]}  d6 {[%clk 0:02:59]} 3. c3 {[%clk 0:03:01]}  Nf6 {[%clk 0:03:00]} 4. h3 {[%clk 0:03:01]}  g6 {[%clk 0:02:58]} 5. Bd3 {[%clk 0:03:02]}  Bg7 {[%clk 0:02:58]} 6. Bc2 {[%clk 0:03:02]}  O-O {[%clk 0:02:57]} 7. O-O {[%clk 0:03:03]}  Nc6 {[%clk 0:02:57]} 8. d4 {[%clk 0:03:04]}  cxd4 {[%clk 0:02:57]} 9. cxd4 {[%clk 0:03:05]}  d5 {[%clk 0:02:57]} 10. e5 {[%clk 0:03:04]}  Ne4 {[%clk 0:02:58]} 11. Nbd2 {[%clk 0:03:04]}  Nxd2 {[%clk 0:02:56]} 12. Bxd2 {[%clk 0:03:05]}  a6 {[%clk 0:02:53]} 13. Rc1 {[%clk 0:03:05]}  Bd7 {[%clk 0:02:50]} 14. Bb1 {[%clk 0:03:00]}  e6 {[%clk 0:02:50]} 15. Bg5 {[%clk 0:02:47]}  Qb6 {[%clk 0:02:49]} 16. Qd2 {[%clk 0:02:48]}  Rac8 {[%clk 0:02:48]} 17. b3 {[%clk 0:02:42]}  Rfe8 {[%clk 0:02:44]} 18. Bh6 {[%clk 0:02:36]}  Bh8 {[%clk 0:02:44]} 19. Qf4 {[%clk 0:02:35]}  Ne7 {[%clk 0:02:33]} 20. Rcd1 {[%clk 0:02:32]}  Nf5 {[%clk 0:02:32]} 21. Bxf5 {[%clk 0:02:31]}  exf5 {[%clk 0:02:32]} 22. g4 {[%clk 0:02:31]}  f6 {[%clk 0:02:15]} 23. exf6 {[%clk 0:02:27]}  Bxf6 {[%clk 0:02:11]} 24. Ne5 {[%clk 0:02:27]}  Be6 {[%clk 0:02:10]} 25. Rc1 {[%clk 0:02:13]}  Qd6 {[%clk 0:01:53]} 26. Rxc8 {[%clk 0:01:40]}  Bxc8 {[%clk 0:01:40]} 27. Nxg6 {[%clk 0:01:40]}  Qxf4 {[%clk 0:01:39]} 28. Nxf4 {[%clk 0:01:41]}  Bxd4 {[%clk 0:01:39]} 29. g5 {[%clk 0:01:26]}  Be5 {[%clk 0:01:19]} 30. Nxd5 {[%clk 0:01:25]}  Kf7 {[%clk 0:01:16]} 31. Rc1 {[%clk 0:01:18]}  f4 {[%clk 0:01:04]} 32. h4 {[%clk 0:01:16]}  Be6 {[%clk 0:00:56]} 33. Nf6 {[%clk 0:01:13]}  Rd8 {[%clk 0:00:49]} 34. Nxh7 {[%clk 0:00:53]}  Rd2 {[%clk 0:00:30]} 35. h5 {[%clk 0:00:52]}  Bd4 {[%clk 0:00:26]} 36. g6+ {[%clk 0:00:49]}  Ke7 {[%clk 0:00:26]} 37. Bg5+ {[%clk 0:00:38]}  Kd7 {[%clk 0:00:20]} 38. Nf6+ {[%clk 0:00:38]}  Kd6 {[%clk 0:00:16]} 39. Ne4+ {[%clk 0:00:39]} 1-0


[Site "https://www.chess.com"]

[Event "Titled Tuesday Blitz November 07 Early 2023"]
[White "rikchessmx"]
[Black "Arifarsky"]
[WhiteElo "2358"]
[BlackElo "2667"]
[Result "0-1"]
[Round "2"]
[TimeControl "180+1"]
[Date "2023.11.07"]
[WhiteClock "0:00:00"]
[BlackClock "0:01:10"]
[Board "158"]

1. e4 {[%clk 0:03:00]}  c5 {[%clk 0:02:59]} 2. Nf3 {[%clk 0:03:00]}  Nc6 {[%clk 0:02:59]} 3. d4 {[%clk 0:03:00]}  cxd4 {[%clk 0:02:59]} 4. Nxd4 {[%clk 0:03:01]}  g6 {[%clk 0:03:00]} 5. Nxc6 {[%clk 0:03:01]}  bxc6 {[%clk 0:03:00]} 6. Qd4 {[%clk 0:03:01]}  Nf6 {[%clk 0:02:58]} 7. e5 {[%clk 0:03:01]}  Nd5 {[%clk 0:02:58]} 8. e6 {[%clk 0:03:01]}  f6 {[%clk 0:02:58]} 9. exd7+ {[%clk 0:02:58]}  Qxd7 {[%clk 0:02:55]} 10. Nc3 {[%clk 0:01:14]}  e5 {[%clk 0:02:50]} 11. Qd3 {[%clk 0:01:09]}  Bg7 {[%clk 0:02:36]} 12. Be2 {[%clk 0:00:55]}  O-O {[%clk 0:02:19]} 13. Ne4 {[%clk 0:00:54]}  Qf7 {[%clk 0:02:14]} 14. c4 {[%clk 0:00:49]}  Nb4 {[%clk 0:01:54]} 15. Qb3 {[%clk 0:00:42]}  a5 {[%clk 0:01:50]} 16. a3 {[%clk 0:00:42]}  Na6 {[%clk 0:01:44]} 17. Qa4 {[%clk 0:00:41]}  Qc7 {[%clk 0:01:37]} 18. O-O {[%clk 0:00:32]}  f5 {[%clk 0:01:33]} 19. Nc3 {[%clk 0:00:30]}  Nc5 {[%clk 0:01:26]} 20. Qc2 {[%clk 0:00:29]}  Ne6 {[%clk 0:01:22]} 21. Rd1 {[%clk 0:00:17]}  Nd4 {[%clk 0:01:22]} 22. Qa4 {[%clk 0:00:14]}  Bd7 {[%clk 0:01:17]} 23. c5 {[%clk 0:00:13]}  Kh8 {[%clk 0:01:16]} 24. Bf1 {[%clk 0:00:09]}  Rab8 {[%clk 0:01:10]} 25. b4 {[%clk 0:00:00]}  Be6 {[%clk 0:01:10]} 0-1


[Site "https://www.chess.com"]

[Event "Titled Tuesday Blitz November 07 Early 2023"]
[White "Luxama, Jacques Muller"]
[Black "Perdomo, Leandro"]
[WhiteFideId "11900113"]
[BlackFideId "109746"]
[WhiteElo "2352"]
[BlackElo "2666"]
[Result "0-1"]
[Round "2"]
[TimeControl "180+1"]
[Date "2023.11.07"]
[WhiteClock "0:00:08"]
[BlackClock "0:00:13"]
[Board "159"]

1. e4 {[%clk 0:03:00]}  e5 {[%clk 0:03:00]} 2. Nf3 {[%clk 0:02:59]}  Nc6 {[%clk 0:03:00]} 3. Bc4 {[%clk 0:02:59]}  Nf6 {[%clk 0:03:00]} 4. d3 {[%clk 0:02:59]}  Be7 {[%clk 0:02:59]} 5. O-O {[%clk 0:02:58]}  O-O {[%clk 0:03:00]} 6. a4 {[%clk 0:02:58]}  d6 {[%clk 0:03:00]} 7. Re1 {[%clk 0:02:58]}  Na5 {[%clk 0:03:00]} 8. Ba2 {[%clk 0:02:57]}  c5 {[%clk 0:03:01]} 9. Bg5 {[%clk 0:02:56]}  Nc6 {[%clk 0:02:59]} 10. Nc3 {[%clk 0:02:53]}  Nb4 {[%clk 0:02:57]} 11. Bb3 {[%clk 0:02:53]}  Be6 {[%clk 0:02:57]} 12. Bxf6 {[%clk 0:02:52]}  Bxf6 {[%clk 0:02:56]} 13. Nd5 {[%clk 0:02:45]}  Nxd5 {[%clk 0:02:54]} 14. Bxd5 {[%clk 0:02:39]}  Bxd5 {[%clk 0:02:53]} 15. exd5 {[%clk 0:02:40]}  Bg5 {[%clk 0:02:40]} 16. a5 {[%clk 0:02:31]}  f5 {[%clk 0:02:38]} 17. Ra3 {[%clk 0:02:29]}  Bh6 {[%clk 0:02:28]} 18. Rb3 {[%clk 0:02:27]}  Rf7 {[%clk 0:02:28]} 19. Qa1 {[%clk 0:02:11]}  Qd7 {[%clk 0:02:26]} 20. c4 {[%clk 0:02:00]}  g5 {[%clk 0:02:23]} 21. a6 {[%clk 0:01:55]}  b6 {[%clk 0:02:22]} 22. Ra3 {[%clk 0:01:48]}  g4 {[%clk 0:02:19]} 23. Nh4 {[%clk 0:01:46]}  Bg5 {[%clk 0:02:19]} 24. g3 {[%clk 0:01:45]}  Bxh4 {[%clk 0:02:19]} 25. gxh4 {[%clk 0:01:45]}  Qe7 {[%clk 0:02:16]} 26. b4 {[%clk 0:01:39]}  cxb4 {[%clk 0:02:12]} 27. Rb3 {[%clk 0:01:39]}  Qxh4 {[%clk 0:02:12]} 28. Rxb4 {[%clk 0:01:39]}  Rf6 {[%clk 0:02:06]} 29. d4 {[%clk 0:01:12]}  Rh6 {[%clk 0:01:17]} 30. dxe5 {[%clk 0:01:12]}  Qxh2+ {[%clk 0:01:17]} 31. Kf1 {[%clk 0:01:12]}  Qh1+ {[%clk 0:01:09]} 32. Ke2 {[%clk 0:01:12]}  Qf3+ {[%clk 0:01:10]} 33. Kd2 {[%clk 0:01:06]}  Qxf2+ {[%clk 0:01:11]} 34. Re2 {[%clk 0:01:06]}  Qf4+ {[%clk 0:01:10]} 35. Kc2 {[%clk 0:01:05]}  Rh2 {[%clk 0:01:08]} 36. Rxh2 {[%clk 0:00:59]}  Qxh2+ {[%clk 0:01:09]} 37. Kb3 {[%clk 0:00:59]}  Qxe5 {[%clk 0:01:06]} 38. Qh1 {[%clk 0:00:52]}  Re8 {[%clk 0:00:58]} 39. Ka4 {[%clk 0:00:52]}  Qe7 {[%clk 0:00:51]} 40. Rb2 {[%clk 0:00:43]}  Qd7+ {[%clk 0:00:51]} 41. Kb4 {[%clk 0:00:43]}  Qc8 {[%clk 0:00:48]} 42. Qc1 {[%clk 0:00:36]}  Qc5+ {[%clk 0:00:46]} 43. Ka4 {[%clk 0:00:35]}  Re3 {[%clk 0:00:43]} 44. Rb5 {[%clk 0:00:32]}  Qd4 {[%clk 0:00:37]} 45. Rb3 {[%clk 0:00:25]}  f4 {[%clk 0:00:32]} 46. Rxe3 {[%clk 0:00:13]}  fxe3 {[%clk 0:00:33]} 47. Qf1 {[%clk 0:00:11]}  Qe5 {[%clk 0:00:12]} 48. Qe2 {[%clk 0:00:11]}  h5 {[%clk 0:00:12]} 49. Kb5 {[%clk 0:00:10]}  g3 {[%clk 0:00:11]} 50. Kc6 {[%clk 0:00:09]}  Qg5 {[%clk 0:00:09]} 51. Qg2 {[%clk 0:00:07]}  h4 {[%clk 0:00:08]} 52. Kb7 {[%clk 0:00:07]}  Qg7+ {[%clk 0:00:08]} 53. Kb8 {[%clk 0:00:06]}  Kh7 {[%clk 0:00:08]} 54. Qe4+ {[%clk 0:00:06]}  Kh8 {[%clk 0:00:08]} 55. Qxh4+ {[%clk 0:00:06]}  Kg8 {[%clk 0:00:08]} 56. Qh1 {[%clk 0:00:05]}  g2 {[%clk 0:00:08]} 57. Qg1 {[%clk 0:00:06]}  e2 {[%clk 0:00:09]} 58. Ka8 {[%clk 0:00:04]}  e1=Q {[%clk 0:00:08]} 59. Qxe1 {[%clk 0:00:05]}  g1=Q {[%clk 0:00:09]} 60. Qe8+ {[%clk 0:00:05]}  Qf8 {[%clk 0:00:09]} 61. Qxf8+ {[%clk 0:00:06]}  Kxf8 {[%clk 0:00:10]} 62. Kxa7 {[%clk 0:00:06]}  Qc5 {[%clk 0:00:09]} 63. Kb7 {[%clk 0:00:06]}  Qxc4 {[%clk 0:00:10]} 64. a7 {[%clk 0:00:06]}  Qxd5+ {[%clk 0:00:10]} 65. Kxb6 {[%clk 0:00:06]}  Qa8 {[%clk 0:00:10]} 66. Kc7 {[%clk 0:00:06]}  d5 {[%clk 0:00:11]} 67. Kd6 {[%clk 0:00:07]}  d4 {[%clk 0:00:12]} 68. Ke5 {[%clk 0:00:08]}  d3 {[%clk 0:00:13]} 69. Kf4 {[%clk 0:00:08]}  d2 {[%clk 0:00:13]} 70. Ke3 {[%clk 0:00:08]}  d1=Q {[%clk 0:00:14]} 71. Kf2 {[%clk 0:00:08]}  Qdf3+ {[%clk 0:00:15]} 72. Kg1 {[%clk 0:00:08]}  Qg2# {[%clk 0:00:13]} 0-1


[Site "https://www.chess.com"]

[Event "Titled Tuesday Blitz November 07 Early 2023"]
[White "Kavyev, Ruslan"]
[Black "secrethawk1"]
[WhiteFideId "34110981"]
[WhiteElo "2634"]
[BlackElo "2352"]
[Result "1-0"]
[Round "2"]
[TimeControl "180+1"]
[Date "2023.11.07"]
[WhiteClock "0:01:57"]
[BlackClock "0:02:08"]
[Board "160"]

1. e4 {[%clk 0:02:55]}  c5 {[%clk 0:02:59]} 2. Nf3 {[%clk 0:02:52]}  e6 {[%clk 0:02:59]} 3. d4 {[%clk 0:02:52]}  cxd4 {[%clk 0:02:59]} 4. Nxd4 {[%clk 0:02:53]}  a6 {[%clk 0:03:00]} 5. Bd3 {[%clk 0:02:52]}  Bc5 {[%clk 0:02:59]} 6. Nb3 {[%clk 0:02:52]}  Ba7 {[%clk 0:02:59]} 7. Nc3 {[%clk 0:02:50]}  Nc6 {[%clk 0:02:57]} 8. Qe2 {[%clk 0:02:50]}  d6 {[%clk 0:02:55]} 9. Be3 {[%clk 0:02:50]}  Bxe3 {[%clk 0:02:54]} 10. Qxe3 {[%clk 0:02:51]}  Nf6 {[%clk 0:02:55]} 11. O-O-O {[%clk 0:02:50]}  b5 {[%clk 0:02:54]} 12. f4 {[%clk 0:02:44]}  Qc7 {[%clk 0:02:52]} 13. Kb1 {[%clk 0:02:43]}  O-O {[%clk 0:02:50]} 14. g4 {[%clk 0:02:42]}  b4 {[%clk 0:02:48]} 15. g5 {[%clk 0:02:40]}  bxc3 {[%clk 0:02:47]} 16. gxf6 {[%clk 0:02:40]}  Qd8 {[%clk 0:02:29]} 17. e5 {[%clk 0:02:34]}  gxf6 {[%clk 0:02:27]} 18. Bxh7+ {[%clk 0:02:26]}  Kh8 {[%clk 0:02:21]} 19. Qh3 {[%clk 0:02:24]}  Rg8 {[%clk 0:02:18]} 20. Rhg1 {[%clk 0:02:22]}  Rg7 {[%clk 0:02:14]} 21. Bd3+ {[%clk 0:01:56]}  Kg8 {[%clk 0:02:11]} 22. Qh7+ {[%clk 0:01:56]}  Kf8 {[%clk 0:02:08]} 23. Qxg7+ {[%clk 0:01:57]} 1-0


[Site "https://www.chess.com"]

[Event "Titled Tuesday Blitz November 07 Early 2023"]
[White "Asavasaetakul, Chawit"]
[Black "Soumya, Swaminathan"]
[WhiteFideId "6204856"]
[BlackFideId "5016193"]
[WhiteElo "2624"]
[BlackElo "2345"]
[Result "1-0"]
[Round "2"]
[TimeControl "180+1"]
[Date "2023.11.07"]
[WhiteClock "0:01:02"]
[BlackClock "0:00:00"]
[Board "163"]

1. e4 {[%clk 0:03:00]}  c5 {[%clk 0:02:59]} 2. c3 {[%clk 0:02:56]}  Nf6 {[%clk 0:02:58]} 3. e5 {[%clk 0:02:56]}  Nd5 {[%clk 0:02:58]} 4. d4 {[%clk 0:02:56]}  cxd4 {[%clk 0:02:59]} 5. cxd4 {[%clk 0:02:56]}  d6 {[%clk 0:02:53]} 6. Bc4 {[%clk 0:02:55]}  e6 {[%clk 0:02:28]} 7. Nf3 {[%clk 0:02:53]}  Nc6 {[%clk 0:02:26]} 8. O-O {[%clk 0:02:53]}  Be7 {[%clk 0:02:23]} 9. Qe2 {[%clk 0:02:53]}  O-O {[%clk 0:02:10]} 10. Rd1 {[%clk 0:02:50]}  Bd7 {[%clk 0:01:55]} 11. Bxd5 {[%clk 0:02:50]}  exd5 {[%clk 0:01:55]} 12. Nc3 {[%clk 0:02:50]}  Be6 {[%clk 0:01:50]} 13. Bf4 {[%clk 0:02:49]}  Rc8 {[%clk 0:01:34]} 14. h3 {[%clk 0:02:41]}  a6 {[%clk 0:01:23]} 15. Rac1 {[%clk 0:02:40]}  Na5 {[%clk 0:01:17]} 16. b3 {[%clk 0:02:18]}  b5 {[%clk 0:01:11]} 17. exd6 {[%clk 0:02:10]}  Bxd6 {[%clk 0:01:11]} 18. Bxd6 {[%clk 0:02:11]}  Qxd6 {[%clk 0:01:12]} 19. Ne5 {[%clk 0:02:11]}  Rfe8 {[%clk 0:01:06]} 20. Qh5 {[%clk 0:02:06]}  f6 {[%clk 0:00:57]} 21. Nf3 {[%clk 0:02:05]}  Bf7 {[%clk 0:00:55]} 22. Qg4 {[%clk 0:02:00]}  h5 {[%clk 0:00:36]} 23. Qf5 {[%clk 0:01:47]}  g6 {[%clk 0:00:30]} 24. Qd3 {[%clk 0:01:44]}  Kg7 {[%clk 0:00:26]} 25. Re1 {[%clk 0:01:39]}  Be6 {[%clk 0:00:21]} 26. Ne2 {[%clk 0:01:36]}  Bf5 {[%clk 0:00:20]} 27. Qd2 {[%clk 0:01:36]}  Nc6 {[%clk 0:00:12]} 28. Ng3 {[%clk 0:01:35]}  Bd7 {[%clk 0:00:11]} 29. Nh4 {[%clk 0:01:18]}  Nb4 {[%clk 0:00:07]} 30. a3 {[%clk 0:01:14]}  Nc6 {[%clk 0:00:05]} 31. b4 {[%clk 0:01:14]}  Ne7 {[%clk 0:00:05]} 32. Rxc8 {[%clk 0:01:10]}  Rxc8 {[%clk 0:00:06]} 33. Qe2 {[%clk 0:01:07]}  Ng8 {[%clk 0:00:06]} 34. Qxh5 {[%clk 0:01:03]}  gxh5 {[%clk 0:00:07]} 35. Nhf5+ {[%clk 0:01:03]}  Bxf5 {[%clk 0:00:06]} 36. Nxf5+ {[%clk 0:01:04]}  Kg6 {[%clk 0:00:06]} 37. Nxd6 {[%clk 0:01:05]}  Rc3 {[%clk 0:00:05]} 38. Re3 {[%clk 0:01:05]}  Rc1+ {[%clk 0:00:05]} 39. Kh2 {[%clk 0:01:05]}  h4 {[%clk 0:00:05]} 40. g3 {[%clk 0:01:04]}  hxg3+ {[%clk 0:00:03]} 41. Rxg3+ {[%clk 0:01:05]}  Kh7 {[%clk 0:00:04]} 42. Nf5 {[%clk 0:01:01]}  Rc2 {[%clk 0:00:03]} 43. Kg2 {[%clk 0:01:02]}  Rd2 {[%clk 0:00:02]} 44. Rg7+ {[%clk 0:01:01]}  Kh8 {[%clk 0:00:00]} 45. Ra7 {[%clk 0:01:02]} 1-0


[Site "https://www.chess.com"]

[Event "Titled Tuesday Blitz November 07 Early 2023"]
[White "Arabidze, Meri"]
[Black "Kujawski, Adam"]
[WhiteFideId "13604040"]
[BlackFideId "1100920"]
[WhiteElo "2617"]
[BlackElo "2344"]
[Result "1-0"]
[Round "2"]
[TimeControl "180+1"]
[Date "2023.11.07"]
[WhiteClock "0:00:56"]
[BlackClock "0:00:25"]
[Board "164"]

1. Nf3 {[%clk 0:03:00]}  d5 {[%clk 0:02:59]} 2. b3 {[%clk 0:03:01]}  Nf6 {[%clk 0:02:54]} 3. e3 {[%clk 0:03:01]}  e6 {[%clk 0:02:54]} 4. Bb2 {[%clk 0:03:01]}  Be7 {[%clk 0:02:54]} 5. c4 {[%clk 0:03:01]}  O-O {[%clk 0:02:53]} 6. Nc3 {[%clk 0:03:01]}  Re8 {[%clk 0:02:40]} 7. Qc2 {[%clk 0:02:57]}  a6 {[%clk 0:02:36]} 8. d4 {[%clk 0:02:56]}  Nbd7 {[%clk 0:02:30]} 9. Bd3 {[%clk 0:02:56]}  Nf8 {[%clk 0:02:26]} 10. O-O {[%clk 0:02:55]}  c6 {[%clk 0:02:25]} 11. Rfd1 {[%clk 0:02:56]}  b5 {[%clk 0:02:24]} 12. e4 {[%clk 0:02:54]}  b4 {[%clk 0:02:12]} 13. Na4 {[%clk 0:02:53]}  dxe4 {[%clk 0:02:12]} 14. Bxe4 {[%clk 0:02:54]}  Nxe4 {[%clk 0:02:12]} 15. Qxe4 {[%clk 0:02:55]}  Bd7 {[%clk 0:01:58]} 16. c5 {[%clk 0:02:54]}  Ng6 {[%clk 0:01:51]} 17. Ne5 {[%clk 0:02:53]}  Qc7 {[%clk 0:01:44]} 18. g3 {[%clk 0:02:47]}  Rad8 {[%clk 0:01:44]} 19. h4 {[%clk 0:02:45]}  Nf8 {[%clk 0:01:23]} 20. h5 {[%clk 0:02:41]}  f6 {[%clk 0:01:22]} 21. Nc4 {[%clk 0:02:33]}  f5 {[%clk 0:01:15]} 22. Qe2 {[%clk 0:02:27]}  Bf6 {[%clk 0:01:14]} 23. Ne5 {[%clk 0:02:26]}  Re7 {[%clk 0:01:10]} 24. Nb6 {[%clk 0:02:21]}  Be8 {[%clk 0:01:08]} 25. f4 {[%clk 0:02:10]}  Nd7 {[%clk 0:01:04]} 26. Nbxd7 {[%clk 0:02:05]}  Bxd7 {[%clk 0:01:04]} 27. Qxa6 {[%clk 0:02:02]}  Be8 {[%clk 0:01:02]} 28. Qe2 {[%clk 0:02:01]}  Bxe5 {[%clk 0:01:03]} 29. dxe5 {[%clk 0:01:57]}  Red7 {[%clk 0:01:03]} 30. Rd6 {[%clk 0:01:56]}  Rxd6 {[%clk 0:01:01]} 31. exd6 {[%clk 0:01:56]}  Qf7 {[%clk 0:01:01]} 32. Qe5 {[%clk 0:01:55]}  Rd7 {[%clk 0:00:50]} 33. Re1 {[%clk 0:01:25]}  Kh8 {[%clk 0:00:46]} 34. h6 {[%clk 0:01:23]}  Kg8 {[%clk 0:00:43]} 35. hxg7 {[%clk 0:01:20]}  Ra7 {[%clk 0:00:37]} 36. Qxe6 {[%clk 0:01:14]}  Qxe6 {[%clk 0:00:37]} 37. Rxe6 {[%clk 0:01:15]}  Bf7 {[%clk 0:00:35]} 38. Re7 {[%clk 0:01:07]}  Rxe7 {[%clk 0:00:29]} 39. dxe7 {[%clk 0:01:07]}  Be8 {[%clk 0:00:29]} 40. Kf2 {[%clk 0:01:05]}  Kf7 {[%clk 0:00:29]} 41. Ke3 {[%clk 0:01:03]}  Bd7 {[%clk 0:00:29]} 42. Kd3 {[%clk 0:00:56]}  Be6 {[%clk 0:00:25]} 43. g8=Q+ {[%clk 0:00:56]} 1-0


[Site "https://www.chess.com"]